Cogmind - Beta 15 @@@ ROGUE MODE // 2025.08.28 @ 02:14:41 Player: Seven ate you Result: Self-destructed Performance ------------- Evolutions (2) 1000 Regions Visited (4) 800 Robots Destroyed (81) 405 Value Destroyed (2279) 2279 Prototype IDs (0) 0 Alien Tech Used (0) 0 Bonus (271) 271 TOTAL SCORE: 4755 Bonus ------- High Alert Combat Kills 38 Follower Combat Kills 233 Cogmind --------- Core Integrity 456/550 Matter 271/300 Energy 160/160 System Corruption 0% Temperature Warning (382) Movement Core (500) Ox9 Location -8/Materials Parts ------- > --- POWER (1) -------- Light Nuclear Core > --- PROPULSION (4) --- Aluminum Leg Aluminum Leg > --- UTILITY (4) ------ Large Storage Unit Advanced Terrain Scan Processor Hacking Suite > --- WEAPON (2) ------- Particle Gun > --- INVENTORY (15) --- Wheel Cryofiber Web Cooling System Large Storage Unit Large Battery (200) Visual Processing Unit Improved Targeting Computer ECM Suite Particle Gun Rocket Launcher Peak State ------------ > --- POWER ------------ Light Nuclear Core > --- PROPULSION ------- Aluminum Leg Aluminum Leg Aluminum Leg Aluminum Leg > --- UTILITY ---------- Large Storage Unit Terrain Scan Processor Advanced Terrain Scan Processor Hacking Suite > --- WEAPON ----------- Particle Gun Particle Gun > --- INVENTORY -------- Cryofiber Web Cooling System Large Storage Unit Large Battery Visual Processing Unit Improved Targeting Computer ECM Suite Particle Gun Particle Gun Assault Cannon Rocket Launcher [Rating: 23] Favorites ----------- Power Light Ion Engine Engine Light Ion Engine Power Core Light Nuclear Core Propulsion Aluminum Leg Treads Improved Treads Leg Aluminum Leg Wheel Wheel Utility Large Storage Unit Device Cooling System Storage Large Storage Unit Processor Terrain Scan Processor Hackware Hacking Suite Weapon Particle Gun Energy Gun Particle Gun Ballistic Gun Assault Rifle Ballistic Cannon Light Cannon Launcher Rocket Launcher Build | -11 -10 -9 -9 -8 ------- Run | Yrd Mat Mat Sto Mat Slots Evolved 4 | . . 2 . 2 Power . | . . . . . Propulsion 2 | . . . . 2 Utility 2 | . . 2 . . Weapon . | . . . . . Parts Attached 54 | 6 8 12 21 7 Power 6 | 1 1 . 3 1 Engine 5 | 1 1 . 3 . Core 1 | . . . . 1 Reactor . | . . . . . Propulsion 19 | 2 2 3 8 4 Treads 7 | . . . 7 . Leg 9 | 2 2 1 1 3 Wheel 3 | . . 2 . 1 Hover . | . . . . . Flight . | . . . . . Utility 10 | 1 2 3 3 1 Device 3 | . 1 1 1 . Storage 3 | 1 . 2 . . Processor 3 | . 1 . 1 1 Hackware 1 | . . . 1 . Protection . | . . . . . Artifact . | . . . . . Weapon 19 | 2 3 6 7 1 Energy Gun 11 | 1 . 5 4 1 Energy Cannon . | . . . . . Ballistic Gun 3 | 1 2 . . . Ballistic Cannon 3 | . 1 . 2 . Launcher 2 | . . 1 1 . Special Weapon . | . . . . . Impact Weapon . | . . . . . Slashing Weapon . | . . . . . Piercing Weapon . | . . . . . Special Melee Weapon . | . . . . . Unidentified Prototypes . | . . . . . Parts Lost 17 | . . 6 4 7 Power 3 | . . 1 1 1 Propulsion 6 | . . 2 1 3 Utility 2 | . . . 1 1 Weapon 6 | . . 3 1 2 Highest Loss Streak 4 | . . 3 2 4 To Critical Strikes . | . . . . . Average Backups 10 | 3 7 10 12 10 Power . | . 1 1 . . Propulsion 3 | 1 2 2 5 . Utility 4 | . 3 3 4 6 Weapon 2 | 1 . 2 2 3 Tool/Special . | . . . . . Unused Backups 20 | . 5 3 1 11 Power . | . . . . . Propulsion 6 | . . 1 1 4 Utility 9 | . 3 1 . 5 Weapon 5 | . 2 1 . 2 Tool/Special . | . . . . . Average Slot Usage (%) 98 | . 97 98 97 97 Engine 10 | . 14 11 10 2 Treads 5 | . . . 16 . Leg 16 | . 27 14 3 31 Wheel 2 | . . 6 1 2 Device 7 | . 6 10 9 1 Storage 16 | . 14 21 17 9 Processor 10 | . 6 11 12 15 Hackware 2 | . . . 3 9 Energy Gun 15 | . 4 21 19 18 Ballistic Gun 4 | . 17 . . . Ballistic Cannon 2 | . 5 . 1 . Peak Build Rating 23 | 6 10 15 20 23 Average Rating 13 | 4 8 14 15 21 On Entrance 8 | . 6 8 11 19 Naked Turns . | . . . . . Heaviest Build 38 | 14 15 33 38 31 Greatest Support 46 | 20 20 20 46 40 Greatest Overweight (x) 10 | . . 3 10 3 Average Overweight (x) . | . . 1 . . Largest Inventory Capacity 15 | 8 8 15 15 15 Average Capacity 12 | 6 8 12 15 15 Most Carried 15 | 5 8 15 15 13 Average Carried 10 | 3 7 10 12 10 Final Capacity 15 | 8 8 15 15 15 Final Carried 14 | 5 8 12 14 10 Class Distribution -------------------- 55% | Mutant 42% | Scavenger-Mutant Dominant Class ---------------- Mutant | -10/Materials Mutant | -9/Materials Mutant | -9/Storage Scavenger-Mutant | -8/Materials Resources | -11 -10 -9 -9 -8 ----------- Run | Yrd Mat Mat Sto Mat Matter Collected 1147 | 294 304 175 304 70 Remotely . | . . . . . Salvage Created 2452 | 107 306 848 801 390 Parts 154 | 8 23 53 47 23 Haulers Intercepted 1 | . . 1 . . Recyclers Shooed 2 | . . . 2 . Parts Field Recycled . | . . . . . Retrieved Matter . | . . . . . Parts Self-Destructed . | . . . . . Prevented . | . . . . . Kills | -11 -10 -9 -9 -8 ------- Run | Yrd Mat Mat Sto Mat Combat Hostiles Destroyed 65 | . 12 20 22 11 Guns 45 | . 9 9 17 10 Cannons 4 | . 3 . 1 . AOE 14 | . . 10 4 . Classes Destroyed 12 | 2 3 6 1 . Worker 3 | . . 2 . 1 Builder 3 | . . 3 . . Tunneler 2 | 2 . . . . Hauler 1 | . . 1 . . Recycler 2 | 1 . 1 . . Operator 3 | . 2 1 . . Watcher 2 | . . 1 1 . Swarmer 16 | . 6 6 . 4 Grunt 32 | . 6 9 12 5 Brawler 1 | . . 1 . . Duelist 1 | . . . 1 . Sentry 15 | . . 4 9 2 Best Kill Streak 14 | 2 3 14 5 5 Combat Bots Only 10 | . 3 10 5 5 Max Kills in Single Turn 3 | 1 1 3 1 1 Gunslinging . | . . . . . Exploded 3 | . . 3 1 . Melee . | . . . . . Uniques/NPCs Destroyed . | . . . . . Combat | -11 -10 -9 -9 -8 -------- Run | Yrd Mat Mat Sto Mat Hostile Shots Fired 243 | . 49 62 81 51 Missed 87 | . 28 19 30 10 Hits 156 | . 21 43 51 41 Melee 1 | . . 1 . . Projectile 155 | . 21 42 51 41 Critical Strikes 7 | . . . 5 2 Damage Taken 2229 | . 257 713 670 589 Core 470 | . 69 197 110 94 Absorbed by Shields . | . . . . . Core Remaining (%) 65 | 100 72 . 23 . Volleys Fired 194 | 8 42 41 64 39 Largest 2 | 2 2 2 2 2 Hottest 130 | 70 70 90 130 130 Shots Fired 359 | 16 84 74 109 76 Gun 324 | 16 62 69 101 76 Cannon 24 | . 22 . 2 . Launcher 11 | . . 5 6 . Special . | . . . . . Kinetic 84 | 8 74 . 2 . Thermal 189 | 8 10 . 95 76 Explosive 11 | . . 5 6 . Electromagnetic 75 | . . 69 6 . Robot Hit Streak 20 | 3 13 20 15 14 Robot Miss Streak 11 | 3 4 4 11 3 Penetration Max . | . . . . . Secondary Targets 5 | . 1 1 2 1 Max Gunslinging Chain 1 | . 1 1 1 1 Shots Hit Robots 238 | 9 51 45 83 50 Core Hits 156 | 4 20 37 74 21 Critical Kills 1 | . 1 . . . Critical Parts Destroyed . | . . . . . Critical Strikes 10 | 1 1 2 3 3 Burn 7 | 1 . . 3 3 Destroy 1 | . 1 . . . Corrupt 2 | . . 2 . . Melee Attacks . | . . . . . Impact . | . . . . . Slashing . | . . . . . Piercing . | . . . . . Sneak Attacks . | . . . . . Combat Hostiles . | . . . . . Follow-up Attacks . | . . . . . Damage Inflicted 4590 | 117 638 1545 1499 791 Guns 3175 | 117 403 712 1152 791 Cannons 270 | . 235 . 35 . Explosions 1145 | . . 833 312 . Melee . | . . . . . Ramming . | . . . . . Kinetic 678 | 79 564 . 35 . Thermal 2247 | 38 74 233 1111 791 Explosive 912 | . . 600 312 . Electromagnetic 753 | . . 712 41 . Impact . | . . . . . Slashing . | . . . . . Piercing . | . . . . . Highest Corruption 3 | . 3 . . . Average Corruption 2 | . 2 . . . Corruption Purged . | . . . . . Corruption Blocked . | . . . . . Effects 5 | . 5 . . . Matter Fused 1 | . 1 . . . Heat Flow Errors 1 | . 1 . . . Parts Rejected 1 | . 1 . . . Data Loss (minor) 1 | . 1 . . . Data Loss (major) 1 | . 1 . . . Overload Shots . | . . . . . Overflow Damage 12 | . . 12 . . Projectiles . | . . . . . Explosions 12 | . . 12 . . Melee . | . . . . . Knockbacks 4 | . 4 . . . Impact . | . . . . . Kinetic 4 | . 4 . . . Secondary . | . . . . . Self-Inflicted Damage 55 | . . 55 . . Shots 2 | . . 2 . . Rammed . | . . . . . Targets Rammed . | . . . . . Kicked . | . . . . . Crushed . | . . . . . Highest Temperature 492 | 18 186 7 492 373 Average Temperature 102 | 10 30 3 113 135 Received Heat Transfer 987 | . 108 186 378 315 Effects 9 | . . . 7 2 Shutdowns 2 | . . . 2 . Energy Bleed 1 | . . . . 1 Interference 3 | . . . 3 . Matter Decay 1 | . . . . 1 Short Circuit 1 | . . . 1 . Damage (minor) 1 | . . . 1 . Siege Activations . | . . . . . Martial Activations . | . . . . . Shielding Activations . | . . . . . Robots Disrupted . | . . . . . Combat Hostiles . | . . . . . Robots Corrupted 1 | . . 1 . . Combat Hostiles 1 | . . 1 . . Parts Fried 1 | . . 1 . . Impact Corruptions . | . . . . . Robots Melted 1 | . . . . 1 Combat Hostiles 1 | . . . . 1 Parts Melted 9 | 1 . . 2 6 Heat Transferred 5065 | 185 222 300 2249 2109 Parts Sabotaged . | . . . . . Parts Stolen . | . . . . . Parts Stripped . | . . . . . Power Chain Reactions 5 | . . 5 . . Alert | -11 -10 -9 -9 -8 ------- Run | Yrd Mat Mat Sto Mat Maximum Alert Level 2 | . . 1 2 1 Low Security (%) 45 | 100 100 35 2 59 Level 1 43 | . . 64 64 40 Level 2 10 | . . . 33 . Level 3 . | . . . . . Level 4 . | . . . . . Level 5 . | . . . . . High Security . | . . . . . Max Security . | . . . . . Peak Influence 520 | 5 102 343 520 280 Initial 183 | . . 7 133 183 Average 206 | 1 38 191 372 196 Influence Increases 2352 | 15 325 690 941 381 Destroy 0b10 Robot/C 1480 | . 240 400 620 220 Destroy 0b10 Robot/NC 80 | 15 10 45 5 5 Destroy Leader 406 | . 60 124 172 50 Allied During Kill 75 | . . . 75 . Successful Hack 7 | . . . 7 . Disable Machine 60 | . . 45 . 15 Destroy Structure 79 | . . 46 32 1 Lose Combat Pursuer 165 | . 15 30 30 90 Influence Decreases 2128 | 15 307 391 822 593 Entered New Map 448 | . . 11 184 253 Time Decay 1350 | 15 307 320 478 230 Lost Part 170 | . . 60 40 70 Lost Ally 160 | . . . 120 40 Squads Dispatched 17 | . 3 4 7 3 Investigation 3 | . . . 2 1 Extermination . | . . . . . Reinforcement 11 | . 3 4 2 2 Assault . | . . . . . Garrison 3 | . . . 3 . Intercept . | . . . . . Searches Triggered . | . . . . . Construction Impeded 1 | . . 1 . . Haulers Reinforced . | . . . . . Active Scanning Responses . | . . . . . Cargo Convoy Interrupts . | . . . . . Stealth | -11 -10 -9 -9 -8 --------- Run | Yrd Mat Mat Sto Mat Distress Signals 9 | . . 3 4 2 Communications Jammed . | . . . . . Distress Signals . | . . . . . Times Spotted 123 | . 26 35 41 21 Peak Tracking Total 10 | . 6 10 5 9 Tactical Retreats 7 | . 1 1 2 3 Traps | -11 -10 -9 -9 -8 ------- Run | Yrd Mat Mat Sto Mat Traps Triggered 5 | . 3 . 1 1 Indirectly . | . . . . . Trap Hack Attempts . | . . . . . Triggered . | . . . . . Disarmed . | . . . . . Reprogrammed . | . . . . . Reused . | . . . . . Traps Extracted . | . . . . . Installed . | . . . . . Triggered . | . . . . . Machines | -11 -10 -9 -9 -8 ---------- Run | Yrd Mat Mat Sto Mat Machines Disabled 4 | . . 3 . 1 Max in Single Turn 1 | . . 1 . 1 Machines Repaired . | . . . . . Machines Dismantled . | . . . . . Machines Sabotaged . | . . . . . Overloaded Fab Kills . | . . . . . Hacking | -11 -10 -9 -9 -8 --------- Run | Yrd Mat Mat Sto Mat Machines Accessed 3 | . . . 3 . Terminals 3 | . . . 3 . Fabricators . | . . . . . Repair Stations . | . . . . . Recycling Units . | . . . . . Scanalyzers . | . . . . . Garrison Access . | . . . . . Total Hacks 9 | . . . 9 . Successful 5 | . . . 5 . Failed 4 | . . . 4 . Catastrophic . | . . . . . Database Lockouts . | . . . . . Manual . | . . . . . Terminals 9 | . . . 9 . Fabricators . | . . . . . Repair Stations . | . . . . . Recycling Units . | . . . . . Scanalyzers . | . . . . . Garrison Access . | . . . . . Terminal Hacks 5 | . . . 5 . Open Door 1 | . . . 1 . Alert Level 1 | . . . 1 . Locate Traps 1 | . . . 1 . Maintenance Status 1 | . . . 1 . Zone Layout 1 | . . . 1 . Fabricator Hacks . | . . . . . Repair Station Hacks . | . . . . . Recycling Unit Hacks . | . . . . . Scanalyzer . | . . . . . Garrison Access Hacks . | . . . . . Unauthorized Hacks . | . . . . . Terminals . | . . . . . Fabricators . | . . . . . Repair Stations . | . . . . . Recycling Units . | . . . . . Scanalyzers . | . . . . . Garrison Access . | . . . . . Data Cores Recovered . | . . . . . Used . | . . . . . Hacking Detections 2 | . . . 2 . Full Trace Events 2 | . . . 2 . Feedback Events . | . . . . . Feedback Blocked . | . . . . . Robot Schematics Acquired . | . . . . . Robots Built . | . . . . . Authchips . | . . . . . Time . | . . . . . Total Robot Build Rating . | . . . . . Part Schematics Acquired . | . . . . . Parts Built . | . . . . . Authchips . | . . . . . Time . | . . . . . Total Part Build Rating . | . . . . . Parts Repaired . | . . . . . Time . | . . . . . Parts Recycled . | . . . . . Recycled Matter . | . . . . . Retrieved Matter . | . . . . . Retrieved Components . | . . . . . Parts Scanalyzed . | . . . . . Part Schematics Acquired . | . . . . . Parts Damaged . | . . . . . Bothacking | -11 -10 -9 -9 -8 ------------ Run | Yrd Mat Mat Sto Mat Used RIF Installer . | . . . . . Robots Hacked . | . . . . . Non-combat . | . . . . . Combat . | . . . . . Robot Hacks Applied . | . . . . . Relay Couplers Released . | . . . . . Fabnet Peak Effective % . | . . . . . Robots Rewired . | . . . . . Allies Hacked . | . . . . . Hacks Repelled . | . . . . . Allies | -11 -10 -9 -9 -8 -------- Run | Yrd Mat Mat Sto Mat Total Allies 10 | . . . 10 . Largest Group 10 | . . . 10 2 Highest-Rated Group 88 | . . . 88 16 Highest-Rated Ally 16 | . . . 16 8 Total Orders . | . . . . . Ally Attacks 85 | . . . 74 11 Total Damage 717 | . . . 631 86 Kills 9 | . . . 9 . Allies Corrupted . | . . . . . Allies Melted . | . . . . . Intel | -11 -10 -9 -9 -8 ------- Run | Yrd Mat Mat Sto Mat Active Infowar (turns) 421 | . 421 . . . Terrain 421 | . 421 . . . Robot Analysis Total . | . . . . . Derelict Logs Recovered . | . . . . . Drone Launches . | . . . . . Drone Recoveries . | . . . . . Exploration | -11 -10 -9 -9 -8 ------------- Run | Yrd Mat Mat Sto Mat Turns Passed 3721 | 117 932 968 1222 482 Spaces Moved 2066 | 68 620 618 525 235 Core 20 | 19 . . 1 . Treads 444 | . . . 444 . Legs 1100 | 49 620 242 10 179 Wheels 502 | . . 376 70 56 Hover . | . . . . . Flight . | . . . . . Fastest Speed 50 | 50 120 110 110 120 Average Speed 130 | 100 120 125 157 122 Slowest Speed 550 | 120 120 190 550 190 Overloaded Moves . | . . . . . Propulsion Burnouts . | . . . . . Robots Hopped . | . . . . . Potential Cave-ins . | . . . . . Cave-ins Triggered . | . . . . . Exploration Rate (%) 50 | 5 92 53 81 23 Regions Visited 4 Branch Regions 1 Pre-discovered Areas . | . . . . . Known Exits Taken 2 | . 1 1 . . Unknown Exits Taken 2 | 1 . . 1 . Scrap Searched . | . . . . . Spaces Dug . | . . . . . Terrain Destroyed 93 | . . 53 40 . Melee . | . . . . . Projectile . | . . . . . AOE 93 | . . 53 40 . Terrain Rammed . | . . . . . Walls Destroyed . | . . . . . Machines Disabled . | . . . . . Actions | -11 -10 -9 -9 -8 --------- Run | Yrd Mat Mat Sto Mat Total 2735 | 100 733 738 811 353 Wait 285 | 5 26 36 160 58 Move 2062 | 67 619 617 524 235 Hop . | . . . . . Pick Up 83 | 12 21 20 23 7 Fast Attach . | . . . . . Attach 34 | 6 4 9 10 5 Detach 2 | . . . 2 . Swap 29 | 1 5 5 15 3 Drop 46 | 1 16 10 13 6 Fire 194 | 8 42 41 64 39 Melee . | . . . . . Ram . | . . . . . Kick . | . . . . . Crush . | . . . . . Escape Stasis . | . . . . . Rewire . | . . . . . Trap . | . . . . . Miscellaneous . | . . . . . Route ------- -11/Scrapyard -10/Materials (discovered 3 exits: *Mat x2 / [*Min]) -9/Materials (discovered 2 exits: *Min / *Sto) -9/Storage -8/Materials History --------- Turn | Location | Event 11 | -11/Scrapyard | Discovered new exit (range 15) 118 | -11/Scrapyard | Entered Materials 221 | -10/Materials | Discovered new exit (range 6) 323 | -10/Materials | Build established: Mutant 508 | -10/Materials | Discovered new exit (range 16) 627 | -10/Materials | Discovered new exit (range 5) 635 | -10/Materials | Identified exit to Materials 1050 | -10/Materials | Entered another Materials area 1050 | -9/Materials | Evolved 2 slots: Utility x2 1059 | -9/Materials | Build established: Scavenger-Mutant 1423 | -9/Materials | Destroyed 10 combat bots 1460 | -9/Materials | Lost 3 parts (2n1w) 1636 | -9/Materials | Build established: Mutant 1781 | -9/Materials | Discovered new exit (range 7) 1802 | -9/Materials | Identified exit to Mines 2002 | -9/Materials | Discovered new exit (range 7) 2017 | -9/Materials | Identified exit to Storage 2018 | -9/Materials | Entered Storage 2045 | -9/Storage | Lost 3 parts (1p2w) 2045 | -9/Storage | Core integrity fell below 50% 2573 | -9/Storage | Build established: Scavenger-Mutant 2932 | -9/Storage | Assisted by bots powering up and referring to "LRC-V3" 2995 | -9/Storage | Garrison activated, responded to threat 3003 | -9/Storage | Lost 3 allies 3076 | -9/Storage | Lost 5 allies 3203 | -9/Storage | Discovered new exit (range 16) 3240 | -9/Storage | Entered Materials 3240 | -8/Materials | Accompanied by 2 allies 3240 | -8/Materials | Evolved 2 slots: Propulsion x2 3722 | -8/Materials | Self-destructed Last Messages --------------- 03662_ Overheating: Energy bleed (-16). 03663_ K-01 Serf collects debris. 03669_ S-10 Pest destroyed. 03670_ K-01 Serf collects debris. 03683_ K-01 Serf cleans the Fusion Modulator. 03685_ Y-45 Defender destroyed. 03692_ K-01 Serf collects debris. 03693_ R-06 Scavenger collects Beam Rifle. 03698_ Dropped Assault Cannon. 03703_ O-16 Technician sends out distress signal. 03703_ O-16 Technician: "IFF HANDSHAKE FAILED. SECURING TERMINAL." 03708_ ALERT: Hostiles spotted, dispatching reinforcements to Terminal M002. 03716_ Aluminum Leg destroyed. 03718_ Terrain Scan Processor destroyed. 03719_ Overheating: Matter decay (-39). 03720_ Particle Gun destroyed. 03720_ Critical hit (Burn: +37). 03720_ U-05 Engineer works on Matter Filter. 03722_ Wheel destroyed. Map ----- +----------------------------------------------------+ | | | | | | | ?????????????????????????????????????????????????? | | ?????????????????????????????????????????????????? | | ?????????????????????????????????????????????????? | | ?????????????????????????????????????????????????? | | ?????????????????????????????????????????????????? | | ####?????????????????????????????????????????????? | | #????????######???????????????????????????????? | | #???????# #???????????????????????????????? | | #???????# #???????????????????????????????? | | #???????# #???????????????????????????????? | | #???????# #???????????????????????????????? | | #???????# #???????????????????????????????? | | +####??##### #???????????????????????????????? | | #??# # #???????????????????????????????? | | #??# + #???????????????????????????????? | | #### # #???????????????????????????????? | | ""## # # ???????????????#??????????????? | | " T"## # # ????????????? #??????????????? | | ""## # #? ??????????u ????????????????? | | % #### ##########+########/#########?????????? | | !% o ????????? | | %* u a ! w ????????? | | % @ g [^ ""??????????? | | ##+###########+######+###### /! ""??????????? | | #?# #=*] =#??????? ! ""??????????? | | """ """ #?# ! +%""" #??????????? ?????????? | | """ """ #?# %[#[""" #????????????????????????? | | """ """ #?# # """ #????????????????????????? | | """ """ #?# # #????????????????????????? | | """ """ #?# %% # #????????????????????????? | | #?##/############????????????????????????? | | ? #??# #???????????????????????????????????? | | ?########??#%#???????????????????????????????????? | | ???????????# #???????????????????????????????????? | | ???????????# #???????????????????????????????????? | | #??????????# #???????????????????????????????????? | | #??????????# ???????????????????????????????????? | | #??????????# ???????????????????????????????????? | | #########??# ???????????????????????????????????? | | # ??? ???????????????????????????????????? | | # """ """ ?? ???????????????????????????????????? | | # """ """ #? ???????????????????????????????????? | | # """ """ #? ???????????????????????????????????? | | # #? ???????????????????????????????????? | | + #? ???????????????????????????????????? | | # ! #? ???????????????????????????????????? | | # #??????????????????????????????????????? | +----------------------------------------------------+ Best States ------------- Heat Dissipation 53 Energy Generation 14 Energy Capacity 465 Matter Stores 300 Matter Capacity 300 Sight Range 16 Terrain Scan Range 16 Terrain Scan Density 285 Evasion (%) 55 Recoil Reduction 2 Offensive Hacking 10 Item Schematics ----------------- None Robot Schematics ------------------ None Fabricated ------------ Nothing Repaired ---------- Nothing Alien Tech Used ----------------- None Achievements -------------- It's Just You Challenges ------------ None Game ------ Seed AntigravArmorKatana Manual? 0 Play Time 00:39:32 Cumulative 8.2 hours Start 2025.08.28 @ 01:33:42 End 2025.08.28 @ 02:14:41 Sessions 1 Manual Loads 0 Difficulty Rogue Special Mode None Game No. 22 Rogue 22 Adventurer 0 Explorer 0 Win Type - Total 0 Types 0/0/0/0/0/0/0/0/0/0 Lore% 1 Gallery% 10 Achievement% 14 Wizard Run 0 Options --------- Layout 0 ASCII 0 Keyboard 0 Movement Mouse Keybinds 0 Fullscreen 2 Font 24/Smallcaps Map View 76x50 Zoom Use 0% Tactical HUD 1 Map Filters NONE Filters NONE Steam 1 RUN: 353dc22c-ea10-4bd4-aeef-c127bedbf8bb